bitfinex/quotes_SOLUSD_20250520
["timestamp","ask_amount","ask_price","bid_price","bid_amount"]
[1747700214034,25.85612177,168.58,168.53,0.5]
[1747700214344,19.92406512,168.59,168.53,6.43360531]
[1747700214534,1.6001,168.63,168.53,6.43360531]
[1747700214535,7.53057191,168.63,168.53,6.43360531]
[1747700214734,32.38790767,168.64,168.54,44.64964886]
[1747700215043,5.92984255,168.64,168.54,44.64964886]
[1747700215434,25.85390767,168.64,168.54,44.64964886]
[1747700215628,5.92906459,168.67,168.57,26.0]
[1747700215840,19.92406512,168.66,168.58,18.64964886]
[1747700216358,25.85288458,168.67,168.59,5.93154991]
[1747700216544,19.92406512,168.65,168.6,17.78]
[1747700216846,19.92406512,168.64,168.6,17.78]
[1747700217442,19.92406512,168.63,168.6,17.78]
[1747700217637,20.75066092,168.67,168.6,17.78]
[1747700217953,20.75066092,168.67,168.57,27.04]
[1747700217954,19.92406512,168.61,168.57,27.04]
[1747700218126,8.188,168.63,168.54,17.78]
[1747700218127,20.7567311,168.62,168.54,17.78]
[1747700218324,19.92406512,168.59,168.54,17.78]
[1747700218562,20.7567311,168.62,168.54,17.78]
[1747700218865,19.92406512,168.61,168.54,17.78]
[1747700219027,5.9304946,168.62,168.54,17.78]
[1747700219224,19.92406512,168.61,168.54,17.78]
[1747700219445,5.9304946,168.62,168.54,23.71326426]
[1747700219640,19.92406512,168.61,168.54,17.78]
[1747700220265,19.92406512,168.59,168.54,17.78]
[1747700220556,20.75947495,168.6,168.54,17.78]
[1747700220753,5.9314797,168.6,168.54,17.78]
[1747700221346,19.92406512,168.59,168.54,17.78]
[1747700221650,19.92406512,168.58,168.54,17.78]
[1747700221855,19.92406512,168.59,168.54,17.78]
[1747700222455,25.85591981,168.59,168.54,17.78]
[1747700223156,5.93185469,168.59,168.54,17.78]
[1747700223353,25.85591981,168.59,168.54,17.78]
[1747700223758,5.93185469,168.59,168.54,17.78]
[1747700224468,25.85591981,168.59,168.54,17.78]
[1747700224955,5.93185469,168.59,168.54,17.78]
[1747700225265,19.92406512,168.58,168.54,17.78]
[1747700225439,19.92406512,168.55,168.45,8.2311]
[1747700225643,19.92406512,168.54,168.46,21.04104439]
[1747700225846,19.92406512,168.53,168.46,47.04104439]
[1747700226065,20.76072947,168.59,168.46,21.04104439]
[1747700226362,19.92406512,168.49,168.46,21.04104439]
[1747700226548,19.92406512,168.53,168.46,21.04104439]
[1747700226744,19.92406512,168.5,168.46,21.04104439]
[1747700226936,14.83251065,168.55,168.46,21.04104439]
[1747700227140,19.92406512,168.48,168.46,3.26104439]
[1747700227342,19.92406512,168.47,168.46,3.26104439]
[1747700227545,0.28432314,168.54,168.4,17.78]
[1747700228071,19.92406512,168.45,168.4,17.78]
[1747700228575,5.93633909,168.46,168.4,17.78]
[1747700228742,25.86040421,168.46,168.4,17.78]
[1747700229147,5.93633909,168.46,168.4,17.78]
[1747700229673,5.9347181,168.5,168.4,23.71812]
[1747700229861,75.87141626,168.56,168.45,18.64964886]
[1747700229862,5.9326056,168.56,168.45,18.64964886]
[1747700230045,5.93154991,168.59,168.49,26.0]
[1747700230250,5.9304946,168.62,168.53,26.0]
[1747700230475,1.6428,168.69,168.53,26.0]
[1747700230476,20.74934786,168.68,168.54,5.9333096]
[1747700230791,5.9283851,168.68,168.58,26.0]
[1747700231106,5.92768227,168.7,168.59,39.72747263]
[1747700231247,5.92768227,168.7,168.62,26.0]
[1747700231452,5.92662834,168.73,168.63,18.64964886]
[1747700231646,5.92662834,168.73,168.66,26.0]
[1747700231979,40.66357685,168.76,168.67,17.8]
[1747700232282,5.92557478,168.76,168.68,18.64964886]
[1747700232463,5.92276711,168.84,168.68,18.64964886]
[1747700232651,20.7296849,168.84,168.7,18.64964886]
[1747700232856,19.92406512,168.78,168.71,26.0]
[1747700233071,20.7296849,168.84,168.71,26.0]
[1747700233866,14.80691779,168.84,168.7,26.0]
[1747700234169,14.80691779,168.84,168.71,3.27782377]
[1747700234386,14.80691779,168.84,168.73,26.0]
[1747700234884,35.53239369,168.86,168.73,26.0]
[1747700234885,5.92206561,168.86,168.76,18.64964886]
[1747700235260,19.92406512,168.83,168.72,6.2497]
[1747700235456,19.92406512,168.76,168.71,3.27782377]
[1747700235684,19.92406512,168.8,168.71,3.27782377]
[1747700235886,19.92406512,168.72,168.71,3.27782377]
[1747700236257,50.36141721,168.78,168.71,3.27782377]
[1747700236461,50.36141721,168.78,168.73,3.27782377]
[1747700236687,19.92406512,168.74,168.73,3.27782377]
[1747700237795,20.74319919,168.73,168.64,8.18350397]
[1747700238374,29.22041064,168.71,168.64,8.18350397]
[1747700238887,20.74319919,168.73,168.64,8.18350397]
[1747700239088,29.22041064,168.71,168.64,8.18350397]
[1747700239276,29.22041064,168.72,168.64,8.18350397]
[1747700239881,20.74688796,168.7,168.64,8.18350397]
[1747700240065,20.74688796,168.7,168.65,3.27589983]
[1747700240268,5.92768227,168.7,168.65,3.27589983]
[1747700241575,5.92768227,168.7,168.64,18.64964886]
[1747700242012,29.22041064,168.74,168.64,18.64964886]
[1747700242172,29.22041064,168.73,168.64,18.64964886]
[1747700242368,29.62436307,168.78,168.64,18.64964886]
[1747700242677,29.22041064,168.73,168.64,18.64964886]
[1747700242880,29.22041064,168.72,168.63,26.0]
[1747700243207,29.22041064,168.71,168.63,26.0]
[1747700243506,29.22041064,168.7,168.63,26.0]
[1747700244093,5.92803367,168.69,168.63,26.0]
[1747700244393,49.96852848,168.69,168.62,17.78]
[1747700244596,29.22041064,168.68,168.62,17.78]
[1747700244797,20.74811784,168.69,168.62,17.78]
[1747700244980,49.96852848,168.69,168.61,26.0]
[1747700245692,20.74811784,168.69,168.6,17.78]
[1747700245883,49.96852848,168.69,168.6,17.78]
[1747700247011,20.74811784,168.69,168.6,17.78]
[1747700247179,20.74811784,168.69,168.61,3.27881629]
[1747700248103,20.74811784,168.69,168.6,17.78]
[1747700248286,49.96852848,168.69,168.6,17.78]
[1747700249096,20.74811784,168.69,168.6,17.78]
[1747700250670,49.96852848,168.69,168.6,17.78]
[1747700251380,29.22041064,168.66,168.59,26.0]
[1747700251697,29.22041064,168.63,168.57,17.78]
[1747700252388,50.38828619,168.69,168.57,17.78]
[1747700252587,29.22041064,168.64,168.57,17.78]
[1747700252798,5.93014291,168.63,168.56,27.2]
[1747700253192,5.92873658,168.67,168.57,80.38964886]
[1747700253381,5.92873658,168.67,168.6,26.0]
[1747700253721,27.2,168.75,168.61,54.38964886]
[1747700253722,5.92768227,168.7,168.61,54.38964886]
[1747700253922,5.92662834,168.73,168.61,54.38964886]
[1747700254217,20.74319919,168.73,168.61,54.38964886]
[1747700254375,5.92662834,168.73,168.64,26.0]
[1747700254576,1.5517,168.82,168.69,18.64964886]
[1747700254577,5.92487261,168.78,168.69,18.64964886]
[1747700254874,5.92452159,168.79,168.69,60.31750907]
[1747700255399,14.80901513,168.82,168.73,18.64964886]
[1747700255400,5.92346878,168.82,168.73,18.64964886]
[1747700255602,5.92346878,168.82,168.74,17.78]
[1747700256099,35.14387942,168.82,168.74,17.78]
[1747700256294,14.80604702,168.85,168.74,17.78]
[1747700256878,29.22041064,168.81,168.72,26.0]
[1747700257079,29.22041064,168.79,168.72,43.78]
[1747700257286,14.80604702,168.85,168.72,43.78]
[1747700257492,29.22041064,168.82,168.72,43.78]
[1747700257692,14.80604702,168.85,168.72,43.78]
[1747700257895,29.22041064,168.82,168.72,43.78]
[1747700258093,14.80604702,168.85,168.72,43.78]
[1747700258402,5.92381967,168.81,168.72,43.78]
[1747700258777,5.92381967,168.81,168.72,49.70696456]
[1747700259895,19.75460609,168.82,168.72,49.70696456]
[1747700260094,19.75460609,168.83,168.72,49.70696456]
[1747700260385,14.80604702,168.85,168.72,43.78]
[1747700260901,19.75460609,168.83,168.72,49.70690389]
[1747700261608,19.75460609,168.82,168.72,43.78]
[1747700261812,19.75460609,168.79,168.7,43.78]
[1747700262005,14.80604702,168.85,168.7,43.78]
[1747700262304,19.75460609,168.8,168.7,43.78]
[1747700262888,50.34054508,168.85,168.71,17.78]
[1747700263188,19.75460609,168.79,168.71,17.78]
[1747700263799,19.75460609,168.78,168.71,17.78]
[1747700264283,5.92522367,168.77,168.71,17.78]
[1747700264504,19.75460609,168.76,168.66,7.27274968]
[1747700264808,20.73828286,168.77,168.66,43.78]
[1747700265025,19.75460609,168.76,168.66,43.78]
[1747700265226,5.92522367,168.77,168.67,18.64964886]
[1747700265591,5.92522367,168.77,168.7,26.0]
[1747700265785,25.67982976,168.77,168.66,17.78]
[1747700265992,25.67982976,168.77,168.69,26.0]
[1747700266195,5.92522367,168.77,168.69,26.0]
[1747700266589,5.92522367,168.77,168.7,18.64964886]
[1747700267011,5.92452159,168.79,168.7,18.64964886]
[1747700267217,25.67912768,168.79,168.7,18.64964886]
[1747700267403,5.92452159,168.79,168.7,18.64964886]
[1747700267605,25.67912768,168.79,168.7,18.64964886]
[1747700267802,25.67912768,168.79,168.69,31.92800032]
[1747700267803,19.75460609,168.77,168.71,26.0]
[1747700268122,5.92592592,168.75,168.68,26.0]
[1747700269199,5.92592592,168.75,168.68,43.76]
[1747700270314,5.92557478,168.76,168.68,43.76]
[1747700270504,5.92557478,168.76,168.66,18.64964886]
[1747700270505,19.75460609,168.75,168.66,43.76]
[1747700270802,19.75460609,168.74,168.66,17.76]
[1747700271119,19.75460609,168.73,168.63,24.57975828]
[1747700271331,5.92557478,168.76,168.67,26.0]
[1747700271521,5.92557478,168.76,168.68,18.64964886]
[1747700272524,16.37291044,168.79,168.68,18.64964886]
[1747700272715,5.92487261,168.78,168.69,5.92803367]
[1747700272919,25.6794787,168.78,168.68,24.57799619]
[1747700273504,5.92487261,168.78,168.68,24.57799619]
[1747700274123,5.92487261,168.78,168.69,9.20614225]
[1747700275327,5.92417061,168.8,168.7,3.27839412]
[1747700275497,5.92417061,168.8,168.72,26.0]
[1747700275698,5.92417061,168.8,168.73,17.76]
[1747700275922,19.75460609,168.79,168.73,17.76]
[1747700276149,19.75460609,168.78,168.73,17.76]
[1747700276315,19.75460609,168.79,168.73,17.76]
[1747700276903,20.73091274,168.83,168.73,17.76]
[1747700277104,19.75460609,168.8,168.73,17.76]
[1747700277305,19.75460609,168.81,168.73,17.76]
[1747700278703,19.75460609,168.82,168.73,23.68641531]
[1747700279138,5.92381967,168.81,168.73,23.68641531]
[1747700279519,5.92381967,168.81,168.74,3.28806541]
[1747700279904,5.92241634,168.85,168.75,18.64964886]
[1747700280110,5.92136428,168.88,168.77,44.64964886]
[1747700280323,19.75460609,168.86,168.77,44.64964886]
[1747700280523,19.75460609,168.85,168.77,26.0]
[1747700280711,20.72477498,168.88,168.75,18.64964886]
[1747700280712,19.75460609,168.83,168.75,17.76]
[1747700280923,5.92136428,168.88,168.76,18.64964886]
[1747700281243,25.67597037,168.88,168.78,18.64964886]
[1747700281451,19.75460609,168.87,168.78,21.93771427]
[1747700281943,19.75460609,168.86,168.78,3.28806541]
[1747700282137,5.92136428,168.88,168.78,3.28806541]
[1747700282308,19.75460609,168.86,168.78,3.28806541]
[1747700282735,19.75460609,168.84,168.78,3.28806541]
[1747700282933,19.75460609,168.84,168.79,3.28806541]
[1747700283147,5.92311792,168.83,168.79,3.28806541]
[1747700283519,20.73091274,168.83,168.79,3.28806541]
[1747700283838,45.66053397,168.93,168.79,3.28806541]
[1747700283839,5.92101367,168.89,168.79,3.28806541]
[1747700284036,20.72392396,168.89,168.81,26.0]
[1747700284249,20.72392396,168.89,168.79,3.28806541]
[1747700284540,20.72392396,168.89,168.75,53.5]
[1747700284541,19.75460609,168.85,168.8,3.28806541]
[1747700284835,50.32899234,168.89,168.8,3.28806541]
[1747700285218,20.72392396,168.89,168.8,3.28806541]
[1747700285617,5.92101367,168.89,168.81,18.64964886]
[1747700285827,5.92101367,168.89,168.81,21.93771427]
[1747700286019,5.92101367,168.89,168.81,47.93771427]
[1747700286946,25.67561976,168.89,168.81,3.28806541]
[1747700287134,5.92206561,168.86,168.82,3.28806541]
[1747700288118,20.72722965,168.86,168.82,3.28806541]
[1747700288518,40.48183574,168.86,168.82,3.28806541]
[1747700288719,20.72722965,168.86,168.82,3.28806541]
[1747700288942,20.72722965,168.86,168.78,5.92486716]
[1747700289225,19.75460609,168.81,168.74,8.18350397]
[1747700289529,19.75460609,168.78,168.74,8.18350397]
[1747700289845,19.75460609,168.77,168.74,8.18350397]
[1747700290031,19.75460609,168.76,168.74,8.18350397]
[1747700290347,19.75460609,168.76,168.69,3.28066063]
[1747700291244,25.68123443,168.73,168.69,3.28066063]
[1747700291437,20.74319919,168.73,168.61,237.56644309]
[1747700291635,20.74319919,168.73,168.64,26.0]
[1747700291840,5.92662834,168.73,168.64,26.0]
[1747700292021,5.92592592,168.75,168.68,26.0]
[1747700292437,5.92592592,168.75,168.63,18.64964886]
[1747700292631,19.75460609,168.74,168.66,26.0]
[1747700292924,19.75460609,168.74,168.63,18.64964886]
[1747700292925,19.75460609,168.73,168.64,29.28568977]
[1747700293124,19.75460609,168.73,168.64,3.28568977]
[1747700293125,5.92697961,168.72,168.64,3.28568977]
[1747700293340,5.92697961,168.72,168.64,29.28568977]
[1747700293843,20.74442863,168.72,168.64,29.28568977]
[1747700294221,5.92697961,168.72,168.64,29.28568977]
[1747700294866,19.75460609,168.71,168.65,3.28568977]
[1747700295160,5.92803367,168.69,168.65,3.28568977]
[1747700295359,19.75460609,168.67,168.65,3.28568977]
[1747700296035,19.75460609,168.66,168.65,3.28568977]
[1747700296544,19.75460609,168.66,168.56,34.18350397]
[1747700296755,50.38828619,168.69,168.53,5.9336525]
[1747700297051,19.75460609,168.62,168.52,50.91400593]
[1747700297230,25.68580419,168.6,168.52,33.15400593]
[1747700297429,19.75460609,168.59,168.52,27.22]
[1747700297622,5.9311981,168.6,168.5,239.46]
[1747700297623,5.9311981,168.6,168.5,23.69468755]
[1747700297826,5.9311981,168.6,168.5,17.76]
[1747700298031,5.92943966,168.65,168.57,26.0]
[1747700298360,19.75460609,168.67,168.57,26.0]
[1747700298726,5.92803367,168.69,168.58,18.64964886]
[1747700299223,19.75460609,168.68,168.59,5.93154991]
[1747700299428,5.92803367,168.69,168.57,32.5839]
[1747700299429,19.75460609,168.66,168.57,38.51581273]
[1747700299651,5.92803367,168.69,168.57,31.93191273]
[1747700299855,5.92803367,168.69,168.58,18.64964886]
[1747700300060,25.68231053,168.7,168.61,26.0]
[1747700300351,25.6819744,168.71,168.61,26.0]
[1747700300930,5.92736831,168.71,168.61,26.0]
[1747700301135,19.75460609,168.71,168.62,18.64964886]
[1747700301340,5.92627711,168.74,168.63,5.93014291]
[1747700301549,29.90862552,168.79,168.67,18.64964886]
[1747700301550,25.6794787,168.78,168.67,18.64964886]
[1747700301755,5.92487261,168.78,168.67,18.64964886]
[1747700302235,5.92311792,168.83,168.71,18.64964886]
[1747700302437,19.75460609,168.82,168.71,18.64964886]
[1747700302754,5.92311792,168.83,168.71,18.64964886]
[1747700302936,19.75460609,168.8,168.7,43.78]
[1747700303136,19.75460609,168.79,168.68,1.6232]
[1747700303452,19.75460609,168.79,168.7,18.64964886]
[1747700303627,20.73091274,168.83,168.7,18.64964886]
[1747700303830,19.75460609,168.82,168.72,26.0]
[1747700304024,19.75460609,168.82,168.73,26.0]
[1747700304429,25.67772401,168.83,168.73,26.0]
[1747700304632,25.67772401,168.83,168.73,18.64964886]
[1747700304837,25.67772401,168.83,168.74,5.92627711]
[1747700305646,19.75460609,168.8,168.72,31.92663803]
[1747700306047,1.6168,168.86,168.73,18.64964886]
[1747700306250,6.3405,168.89,168.73,18.64964886]
[1747700306458,19.75460609,168.84,168.76,26.0]
[1747700306765,19.75460609,168.83,168.76,26.0]
[1747700306938,5.92346878,168.82,168.76,26.0]
[1747700307260,5.92171492,168.87,168.76,31.92550848]
[1747700307455,5.92171492,168.87,168.77,36.42964886]
[1747700307640,19.75460609,168.86,168.77,36.42964886]
[1747700307843,6.3405,168.89,168.77,36.42964886]
[1747700307844,12.26170976,168.89,168.8,26.0]
[1747700308148,5.92031259,168.91,168.81,18.64964886]
[1747700308345,19.75460609,168.89,168.81,18.64964886]
[1747700308539,19.75460609,168.89,168.8,26.0]
[1747700308745,5.92031259,168.91,168.82,26.0]
[1747700308946,5.92101367,168.89,168.82,26.0]
[1747700309459,5.91996211,168.92,168.82,31.92340423]
[1747700309664,19.75460609,168.88,168.81,5.92378094]
[1747700309959,19.75460609,168.85,168.77,17.78]
[1747700310266,19.75460609,168.84,168.73,27.22]
[1747700310473,19.75460609,168.83,168.74,23.9001]
[1747700310843,0.28432314,168.91,168.77,26.0]
[1747700311048,20.71986739,168.92,168.77,26.0]
[1747700311049,50.31967795,168.92,168.77,26.0]
[1747700311250,20.71986739,168.92,168.78,24.57452147]
[1747700311666,19.75460609,168.88,168.78,24.57452147]
[1747700311845,19.75460609,168.84,168.77,26.0]
[1747700312053,19.75460609,168.83,168.76,26.0]
[1747700312258,19.75460609,168.82,168.76,26.0]
[1747700312938,19.75460609,168.88,168.76,26.0]
[1747700312939,19.75460609,168.88,168.76,26.5]
[1747700313139,5.92171492,168.87,168.77,5.92522367]
[1747700313340,19.75460609,168.85,168.77,5.92522367]
[1747700313561,5.92031259,168.91,168.78,44.64964886]
[1747700313868,5.92031259,168.91,168.82,26.0]
[1747700314166,5.92031259,168.91,168.82,43.76]
[1747700314467,25.67491868,168.91,168.82,43.76]
[1747700314668,5.92031259,168.91,168.82,43.76]
[1747700315054,25.67491868,168.91,168.82,43.76]
[1747700315253,25.67491868,168.91,168.83,5.92311792]
[1747700315547,19.75460609,168.89,168.82,43.76]
[1747700315947,19.75460609,168.9,168.82,49.6833858]
[1747700316147,5.92031259,168.91,168.82,49.6833858]
[1747700316750,19.75460609,168.9,168.82,49.6833858]
[1747700316945,19.75460609,168.89,168.82,17.76]
[1747700317157,19.75460609,168.86,168.79,17.76]
[1747700317353,25.67702243,168.85,168.8,35.55]
[1747700317553,25.67702243,168.85,168.79,17.76]
[1747700317756,5.92241634,168.85,168.79,17.76]
[1747700318451,19.75460609,168.84,168.79,17.76]
[1747700318774,5.92241634,168.85,168.79,17.76]
[1747700318949,5.92028457,168.93,168.79,17.76]
[1747700318950,19.75460609,168.86,168.79,17.76]
[1747700319269,25.67661124,168.87,168.79,23.68450605]
[1747700319853,19.75460609,168.86,168.79,23.68450605]
[1747700320166,19.75460609,168.86,168.79,17.76]
[1747700320480,19.75460609,168.84,168.79,17.76]
[1747700320861,19.75460609,168.85,168.79,17.76]
[1747700321269,5.92311792,168.83,168.79,17.76]
[1747700321469,19.75460609,168.82,168.78,27.2]
[1747700321666,19.75460609,168.81,168.78,27.2]
[1747700321856,19.75460609,168.79,168.71,6.3943]
[1747700322057,19.75460609,168.79,168.72,43.76]
[1747700322766,20.73091274,168.83,168.72,43.76]
[1747700322976,20.73091274,168.83,168.72,26.0]
[1747700323173,19.75460609,168.78,168.71,24.1543]
[1747700323376,6.3914,168.84,168.71,17.76]
[1747700323377,5.92522367,168.77,168.71,17.76]
[1747700323878,25.67982976,168.77,168.71,17.76]
[1747700324066,5.92522367,168.77,168.7,27.02]
[1747700324265,19.75460609,168.76,168.7,27.02]
[1747700325362,5.92592592,168.75,168.7,27.02]
[1747700325850,19.75460609,168.76,168.7,27.02]
[1747700326053,5.92452159,168.79,168.71,26.0]
[1747700326251,5.92346878,168.82,168.71,26.0]
[1747700326475,19.75460609,168.82,168.72,18.64964886]
[1747700326689,19.75460609,168.81,168.72,18.64964886]
[1747700326976,5.92320012,168.83,168.72,18.64964886]
[1747700327176,29.88907713,168.9,168.72,18.64964886]
[1747700327177,5.92136428,168.88,168.77,26.0]
[1747700327377,12.42652057,168.89,168.79,5.92452159]
[1747700327886,32.18112666,168.89,168.8,18.64964886]
[1747700328456,1.6575,168.91,168.8,18.64964886]
[1747700328766,5.91996211,168.92,168.84,18.64964886]
[1747700329355,5.91996211,168.92,168.85,5.92241634]
[1747700329552,25.6745682,168.92,168.85,5.92241634]
[1747700329770,35.06500084,168.92,168.84,18.64964886]
[1747700330356,5.91996211,168.92,168.84,18.64964886]
[1747700330557,35.06500084,168.92,168.84,18.64964886]
[1747700330759,35.06500084,168.92,168.83,26.0]
[1747700330958,29.14503873,168.91,168.83,26.0]
[1747700331479,5.92066311,168.9,168.83,26.0]
[1747700331788,5.92066311,168.9,168.84,18.64964886]
[1747700332298,29.14503873,168.89,168.81,26.0]
[1747700332677,20.72232089,168.9,168.81,26.0]
[1747700332678,29.14503873,168.88,168.81,26.0]
[1747700333061,29.14503873,168.88,168.82,26.0]
[1747700333269,29.14503873,168.85,168.8,7.3164795]
[1747700333575,5.92276711,168.84,168.8,7.3164795]
[1747700335680,5.92241634,168.85,168.8,7.3164795]
[1747700335880,35.06745507,168.85,168.8,7.3164795]
[1747700336088,29.14503873,168.81,168.8,7.3164795]
[1747700336269,20.7284572,168.85,168.8,7.3164795]
[1747700336589,29.14503873,168.83,168.8,7.3164795]
[1747700336791,20.7284572,168.85,168.8,7.3164795]
[1747700336971,29.14503873,168.83,168.8,7.3164795]
[1747700337365,29.14503873,168.82,168.8,7.3164795]
[1747700337577,5.92381967,168.81,168.8,7.3164795]
[1747700337871,35.0688584,168.81,168.8,7.3164795]
[1747700338879,5.92381967,168.81,168.8,7.3164795]
[1747700339677,5.92346878,168.82,168.8,7.3164795]
[1747700340096,35.06850751,168.82,168.8,7.3164795]
[1747700340393,29.14503873,168.81,168.8,7.3164795]
[1747700341800,35.0688584,168.81,168.8,7.3164795]
[1747700341980,5.92381967,168.81,168.8,7.3164795]
[1747700342871,5.92276711,168.84,168.8,7.3164795]
[1747700343077,5.92239225,168.86,168.8,7.3164795]
[1747700344088,5.92066311,168.9,168.82,18.64964886]
[1747700344709,35.06570184,168.9,168.81,26.0]
[1747700344871,35.06570184,168.9,168.82,3.28496435]
[1747700345282,5.92066311,168.9,168.82,3.28496435]
[1747700345502,35.06570184,168.9,168.82,3.28496435]
[1747700345710,20.72232089,168.9,168.82,3.28496435]
[1747700345994,49.86735962,168.9,168.82,3.28496435]
[1747700346205,49.86735962,168.9,168.83,3.28496435]
[1747700346398,5.92066311,168.9,168.83,3.28496435]
[1747700346605,5.92025215,168.92,168.84,18.64964886]
[1747700346819,5.92025215,168.92,168.84,80.19964886]
[1747700347173,5.92025215,168.92,168.86,18.64964886]
[1747700347375,5.778123,168.93,168.91,18.64964886]
[1747700347575,5.91750991,168.99,168.91,18.64964886]
[1747700347788,35.06254864,168.99,168.91,18.64964886]
[1747700347989,29.14503873,168.98,168.91,18.64964886]
[1747700348195,35.06254864,168.99,168.91,18.64964886]
[1747700349291,5.91750991,168.99,168.92,3.28496435]
[1747700350282,5.91750991,168.99,168.93,18.64964886]
[1747700351181,6.91722189,169.0,168.89,50.35253419]
[1747700351403,1.0,169.0,168.93,44.64964886]
[1747700351817,1.0,169.0,168.94,3.27684583]
[1747700352713,1.0,169.0,168.95,18.64964886]
[1747700353099,1.0,169.0,168.99,26.0]
[1747700353417,1.0,169.0,168.99,43.76]
[1747700354003,1.0,169.0,168.99,62.40964886]
[1747700354335,5.91226203,169.14,169.04,18.64964886]
[1747700354628,5.91226203,169.14,169.06,18.64964886]
[1747700354783,5.91226203,169.14,169.07,17.76]
[1747700355295,20.69206455,169.15,169.08,18.64964886]
[1747700355605,5.9119125,169.15,169.08,18.64964886]
[1747700356793,34.97007331,169.15,169.07,17.76]
[1747700357305,49.74985456,169.15,169.07,17.76]
[1747700357498,14.774757,169.21,169.09,35.55]
[1747700357681,5.90911776,169.23,169.13,35.55]
[1747700357885,5.90911776,169.23,169.15,54.19964886]
[1747700358115,5.90911776,169.23,169.16,17.74]
[1747700358489,34.96623123,169.26,169.17,54.19964886]
[1747700358695,5.90807042,169.26,169.17,54.19964886]
[1747700358907,34.96623123,169.26,169.17,54.19964886]
[1747700359209,5.90876861,169.24,169.17,54.19964886]
[1747700359415,34.96692942,169.24,169.16,17.74]
[1747700359597,5.90876861,169.24,169.17,18.64964886]
[1747700360815,29.05816081,169.22,169.15,17.74]
[1747700361312,5.9098162,169.21,169.16,18.64964886]
[1747700361496,5.90911776,169.23,169.16,71.93964886]
[1747700363918,5.90911776,169.23,169.17,17.74]
[1747700364212,20.68191218,169.23,169.17,17.74]
[1747700364418,5.90911776,169.23,169.17,17.74]
[1747700364626,5.90911776,169.23,169.18,18.64964886]
[1747700365419,5.9073724,169.28,169.18,54.19964886]
[1747700366124,5.9073724,169.28,169.18,60.11049235]
[1747700366808,5.9073724,169.28,169.21,26.0]
[1747700367338,20.6758034,169.28,169.21,26.0]
[1747700367498,29.05816081,169.27,169.21,26.0]
[1747700368294,20.6758034,169.28,169.21,26.0]
[1747700368495,49.73396421,169.28,169.19,35.55]
[1747700368729,49.73396421,169.28,169.17,17.74]
[1747700368730,29.05816081,169.23,169.17,17.74]
[1747700369098,29.05816081,169.22,169.16,53.27]
[1747700369427,5.9098162,169.21,169.16,53.27]
[1747700369593,5.9098162,169.21,169.16,17.72]
[1747700370200,5.9098162,169.21,169.14,52.32]
[1747700370401,29.05816081,169.19,169.15,17.72]
[1747700370620,29.05816081,169.19,169.14,26.32]
[1747700370929,6.4095,169.28,169.15,80.19964886]
[1747700371125,29.05816081,169.26,169.15,80.19964886]
[1747700371299,34.9665803,169.25,169.15,86.11125374]
[1747700371830,5.90841949,169.25,169.15,86.11125374]
[1747700372117,5.90841949,169.25,169.18,18.64964886]
[1747700372322,5.90841949,169.25,169.19,17.72]
[1747700372497,5.90841949,169.25,169.2,18.64964886]
[1747700373312,14.76785715,169.29,169.2,54.19964886]
[1747700373622,14.76785715,169.29,169.2,60.10972304]
[1747700373802,43.82601796,169.29,169.2,60.10972304]
[1747700373998,5.90632567,169.31,169.23,26.0]
[1747700374310,5.90632567,169.31,169.26,18.64964886]
[1747700374622,5.90562806,169.33,169.27,17.72]
[1747700374817,5.90493061,169.35,169.29,35.55]
[1747700375018,1.6021,169.38,169.3,18.64964886]
[1747700375019,14.76003753,169.38,169.3,18.64964886]
[1747700375326,5.90388475,169.38,169.3,54.19964886]
[1747700376426,5.90388475,169.38,169.29,35.55]
[1747700376427,19.61907959,169.36,169.29,35.55]
[1747700376727,25.52296434,169.38,169.29,35.55]
[1747700376926,19.61907959,169.36,169.29,35.55]
[1747700377099,20.66359664,169.38,169.29,35.55]
[1747700377100,19.61907959,169.35,169.29,35.55]
[1747700377529,5.90527931,169.34,169.22,18.64964886]
[1747700377724,5.90527931,169.34,169.21,238.88]
[1747700377725,29.02168305,169.28,169.21,238.88]
[1747700378133,29.02168305,169.27,169.21,238.88]
[1747700378336,29.02168305,169.25,169.21,17.72]
[1747700378541,29.02168305,169.24,169.21,17.72]
[1747700378920,29.02168305,169.22,169.21,17.72]
[1747700379241,29.02168305,169.22,169.15,17.72]
[1747700379536,34.93149925,169.21,169.14,17.72]